fUSD/lending_fUSD_20260621
["ID","MTS","AMOUNT","RATE_DAILY","PERIOD"]
[425920718,1782036331000,-166.66,0.00012562,2]
[425920725,1782036331000,-637.01909396,0.00012889,2]
[425920742,1782036332000,-1000.0,0.00012989,2]
[425920751,1782036332000,-216.32317309,0.00013002,2]
[425920748,1782036332000,-153.0,0.00012989,2]
[425920746,1782036332000,-248.45,0.00012989,2]
[425920750,1782036332000,-151.0,0.00012989,2]
[425920745,1782036332000,-1000.0,0.00012989,2]
[425920741,1782036332000,-1000.0,0.00012989,2]
[425920743,1782036332000,-1000.0,0.00012989,2]
[425920736,1782036332000,-158.66028314,0.00012924,2]
[425920739,1782036332000,-150.0,0.00012987,2]
[425920740,1782036332000,-1000.0,0.00012989,2]
[425920737,1782036332000,-3409.35,0.00012954,2]
[425920738,1782036332000,-329.88501867,0.00012979,2]
[425920735,1782036332000,-150.0,0.00012919,2]
[425920734,1782036332000,-153.0,0.00012889,2]
[425920733,1782036332000,-152.0,0.00012889,2]
[425920744,1782036332000,-1000.0,0.00012989,2]
[425920749,1782036332000,-151.0,0.00012989,2]
[425920747,1782036332000,-2472119.18417857,0.00012989,2]
[425920754,1782036332000,-152.0,0.00013089,2]
[425920770,1782036332000,-500.0,0.00013698,2]
[425920767,1782036332000,-3409.35,0.00013586,2]
[425920769,1782036332000,-27159.73,0.00013671,2]
[425920768,1782036332000,-500.0,0.00013637,2]
[425920764,1782036332000,-289.53384537,0.0001332,2]
[425920765,1782036332000,-500.0,0.00013363,2]
[425920766,1782036332000,-250.0,0.00013541,2]
[425920763,1782036332000,-166.66,0.00013277,2]
[425920752,1782036332000,-150.0,0.00013041,2]
[425920760,1782036332000,-250.0,0.00013271,2]
[425920762,1782036332000,-500.0,0.00013271,2]
[425920759,1782036332000,-3409.35,0.0001327,2]
[425920756,1782036332000,-217.0,0.00013163,2]
[425920757,1782036332000,-177.90780238,0.00013171,2]
[425920758,1782036332000,-184.84,0.00013262,2]
[425920755,1782036332000,-500.0,0.00013089,2]
[425920753,1782036332000,-166.66,0.0001306,2]
[425920761,1782036332000,-259.72973563,0.00013271,2]
[425920785,1782036333000,-500.0,0.00013698,2]
[425920783,1782036333000,-500.0,0.00013698,2]
[425920784,1782036333000,-500.0,0.00013698,2]
[425920782,1782036333000,-500.0,0.00013698,2]
[425920780,1782036333000,-500.0,0.00013698,2]
[425920779,1782036333000,-500.0,0.00013698,2]
[425920775,1782036333000,-500.0,0.00013698,2]
[425920777,1782036333000,-500.0,0.00013698,2]
[425920776,1782036333000,-500.0,0.00013698,2]
[425920787,1782036333000,-500.0,0.00013698,2]
[425920772,1782036333000,-500.0,0.00013698,2]
[425920774,1782036333000,-500.0,0.00013698,2]
[425920773,1782036333000,-500.0,0.00013698,2]
[425920771,1782036333000,-500.0,0.00013698,2]
[425920778,1782036333000,-500.0,0.00013698,2]
[425920788,1782036333000,-500.0,0.00013698,2]
[425920781,1782036333000,-500.0,0.00013698,2]
[425920791,1782036333000,-233.62831869,0.00013698,2]
[425920789,1782036333000,-500.0,0.00013698,2]
[425920806,1782036333000,-3409.35,0.00013902,2]
[425920804,1782036333000,-166.66,0.00013701,2]
[425920805,1782036333000,-255.0,0.00013794,2]
[425920803,1782036333000,-349.8270022,0.00013699,2]
[425920800,1782036333000,-203.8,0.00013699,2]
[425920801,1782036333000,-169.83,0.00013699,2]
[425920802,1782036333000,-849.18,0.00013699,2]
[425920797,1782036333000,-352.16,0.00013699,2]
[425920786,1782036333000,-500.0,0.00013698,2]
[425920799,1782036333000,-244.56,0.00013699,2]
[425920796,1782036333000,-422.6,0.00013699,2]
[425920794,1782036333000,-2213.84,0.00013699,2]
[425920793,1782036333000,-5057.74,0.00013699,2]
[425920792,1782036333000,-200.0,0.00013699,2]
[425920795,1782036333000,-507.12,0.00013699,2]
[425920790,1782036333000,-500.0,0.00013698,2]
[425920798,1782036333000,-293.47,0.00013699,2]
[425920807,1782036334000,-500.0,0.00013911,2]
[425920808,1782036334000,-549.10514448,0.0001399,2]
[425920810,1782036334000,-192.977405,0.00014,2]
[425920809,1782036334000,-1580.25,0.00013993,2]
[425920811,1782036334000,-166.66,0.00014125,2]
[425920813,1782036334000,-500.0,0.00014459,2]
[425920812,1782036334000,-500.0,0.00014185,2]
[425920814,1782036334000,-2203.59694505,0.0001449,2]
[425920815,1782036334000,-8321.90245164,0.0001449,2]
[425920817,1782036334000,-500.0,0.00014733,2]
[425920818,1782036334000,-221.82083682,0.000148,2]
[425920821,1782036334000,-25005.40542496,0.00015,10]
[425920820,1782036334000,-166.66,0.00014974,2]
[425920822,1782036334000,-50666.92723332,0.00015,2]
[425920823,1782036334000,-433.0,0.00015,2]
[425920816,1782036334000,-166.66,0.00014549,2]
[425920819,1782036334000,-3146.81027155,0.000149,2]
[425920824,1782036335000,151.0,0.00013698,2]
[425920825,1782036336000,151.0,0.00015,2]
[425920826,1782036373000,215.449231,0.00027386,120]
[425920827,1782036412000,-500.0,0.00012351,2]
[425920828,1782036427000,-500.0,0.00012351,2]
[425920830,1782036458000,-500.0,0.00012351,2]
[425920831,1782036460000,-500.0,0.00012351,2]
[425920832,1782036491000,-215.0,0.00012509,2]
[425920835,1782036493000,-500.0,0.00012508,2]
[425920833,1782036493000,-160.0,0.00012351,2]
[425920836,1782036493000,-500.0,0.00012508,2]
[425920837,1782036493000,-155.26513622,0.00012508,2]
[425920834,1782036493000,-500.0,0.00012508,2]
[425920839,1782036493000,-3453.5664601,0.00012509,2]
[425920841,1782036493000,-171.09,0.00012936,2]
[425920840,1782036493000,-2500000.0,0.00012889,2]
[425920842,1782036493000,-215.0,0.00013277,2]
[425920838,1782036493000,-352.5988966,0.00012508,2]
[425920843,1782036494000,216.32317309,0.00012509,2]
[425920844,1782036495000,831.53404831,0.00012888,2]
[425920846,1782036523000,8627.43022167,0.00012836,2]
[425920845,1782036523000,-215.0,0.00013277,2]
[425920847,1782036526000,-215.0,0.00013277,2]
[425920848,1782036530000,-1500000.0,0.00012454,2]
[425920849,1782036570000,-175.42542329,0.00012509,2]
[425920853,1782036619000,-183.91834847,0.00012835,2]
[425920850,1782036619000,-160.0,0.00012454,2]
[425920852,1782036619000,-1195.32541436,0.00012509,2]
[425920851,1782036619000,-302422.1236,0.00012454,2]
[425920856,1782036619000,-500.0,0.00012835,2]
[425920855,1782036619000,-197.18806101,0.00012835,2]
[425920857,1782036619000,-212.27761137,0.00012835,2]
[425920854,1782036619000,-500.0,0.00012835,2]
[425920878,1782036632000,-194.4753734,0.00014546,2]
[425920885,1782036632000,-248.45,0.00015587,2]
[425920887,1782036632000,-154.94584677,0.00016,2]
[425920898,1782036632000,-285.87,0.00016273,2]
[425920900,1782036632000,-176.96838881,0.00016356,2]
[425920886,1782036632000,-151.0,0.00015889,2]
[425920902,1782036632000,-1500.0,0.00016371,2]
[425920905,1782036632000,-556.88,0.00016438,2]
[425920889,1782036632000,-433.0,0.00016039,2]
[425920890,1782036632000,-8627.43022167,0.0001605,2]
[425920888,1782036632000,-314.7019278,0.00016,2]
[425920895,1782036632000,-314.7019278,0.000161,2]
[425920896,1782036632000,-314.7019278,0.000162,2]
[425920891,1782036632000,-8321.90245164,0.00016091,2]
[425920909,1782036632000,-595.52,0.00016438,2]
[425920911,1782036632000,-211.9,0.00016438,2]
[425920916,1782036632000,-229.9,0.00016604,2]
[425920913,1782036632000,-500.0,0.00016438,2]
[425920906,1782036632000,-658.35,0.00016438,2]
[425920919,1782036632000,-285.87,0.00016679,2]
[425920879,1782036632000,-164.48350682,0.00014755,2]
[425920893,1782036632000,-198.76,0.00016098,2]
[425920881,1782036632000,-153.0,0.0001485,2]
[425920869,1782036632000,-500.0,0.00013698,2]
[425920877,1782036632000,-8627.43022167,0.00014443,2]
[425920923,1782036632000,-500.0,0.00016712,2]
[425920858,1782036632000,-176.2224448,0.00013598,2]
[425920860,1782036632000,-150.0,0.00013697,2]
[425920861,1782036632000,-502.34036768,0.00013698,2]
[425920859,1782036632000,-250.0,0.00013632,2]
[425920863,1782036632000,-454.80670556,0.00013698,2]
[425920862,1782036632000,-45.19329444,0.00013698,2]
[425920865,1782036632000,-500.0,0.00013698,2]
[425920867,1782036632000,-500.0,0.00013698,2]
[425920866,1782036632000,-500.0,0.00013698,2]
[425920864,1782036632000,-500.0,0.00013698,2]
[425920870,1782036632000,-500.0,0.00013698,2]
[425920871,1782036632000,-500.0,0.00013698,2]
[425920868,1782036632000,-500.0,0.00013698,2]
[425920872,1782036632000,-500.0,0.00013698,2]
[425920873,1782036632000,-500.0,0.00013698,2]
[425920876,1782036632000,-250.0,0.0001376,2]
[425920875,1782036632000,-500.0,0.00013698,2]
[425920880,1782036632000,-255.0,0.0001482,2]
[425920882,1782036632000,-151.2,0.00014986,2]
[425920874,1782036632000,-500.0,0.00013698,2]
[425920883,1782036632000,-1580.25,0.00015547,2]
[425920925,1782036632000,-4186.35,0.00016908,2]
[425920978,1782036632000,-6945.85,0.0002,2]
[425920921,1782036632000,-13515.69,0.00016693,2]
[425920957,1782036632000,-372.10589237,0.00018687,2]
[425920960,1782036632000,-500.0,0.00018693,2]
[425920961,1782036632000,-500.0,0.00018693,2]
[425920969,1782036632000,-8321.90245164,0.00019293,2]
[425920962,1782036632000,-500.0,0.00018693,2]
[425920963,1782036632000,-500.0,0.00018693,2]
[425920967,1782036632000,-4983.90660758,0.00019263,2]
[425920964,1782036632000,-1252.0,0.00018779,2]
[425920966,1782036632000,-3643.52361409,0.00019263,2]
[425920968,1782036632000,-500.0,0.00019292,2]
[425920927,1782036632000,-2000.0,0.00016912,2]
[425920971,1782036632000,-2000.0,0.00019713,2]
[425920970,1782036632000,-1865.36488656,0.00019659,2]
[425920974,1782036632000,-218.0,0.0002,2]
[425920976,1782036632000,-2657.01,0.0002,2]
[425920975,1782036632000,-189.0,0.0002,2]
[425920972,1782036632000,-1080.1947312,0.0002,2]
[425920973,1782036632000,-153.0,0.0002,2]
[425920979,1782036632000,-1934.38338736,0.00020207,2]
[425920980,1782036632000,-3922.44897561,0.0002023,2]
[425920977,1782036632000,-180.577745,0.0002,2]
[425920956,1782036632000,-3922.44897562,0.00018687,2]
[425920955,1782036632000,-817.39018586,0.00018687,2]
[425920965,1782036632000,-1798.80895522,0.00019111,2]
[425920954,1782036632000,-1580.25,0.00018657,2]
[425920952,1782036632000,-211.9,0.0001841,2]
[425920929,1782036632000,-1555.5,0.00016919,2]
[425920931,1782036632000,-638.6,0.00016931,2]
[425920933,1782036632000,-500.0,0.00016986,2]
[425920937,1782036632000,-1580.25,0.00017102,2]
[425920935,1782036632000,-285.87,0.00017086,2]
[425920941,1782036632000,-736.0,0.00017354,2]
[425920939,1782036632000,-618.80445486,0.0001726,2]
[425920943,1782036632000,-285.87,0.00017493,2]
[425920945,1782036632000,-8627.43022167,0.00017656,2]
[425920940,1782036632000,-150.0,0.00017283,2]
[425920942,1782036632000,-1613.0535,0.00017467,2]
[425920947,1782036632000,-2453.67,0.0001784,2]
[425920944,1782036632000,-150.0,0.000175,7]
[425920949,1782036632000,-285.87,0.000179,2]
[425920959,1782036632000,-500.0,0.00018693,2]
[425920948,1782036632000,-509.28969808,0.00017893,2]
[425920951,1782036632000,-1672.7364795,0.00018015,2]
[425920950,1782036632000,-3668.5664601,0.0001793,2]
[425920953,1782036632000,-1734.62772924,0.00018563,2]
[425920946,1782036632000,-8321.90245164,0.00017692,2]
[425920958,1782036632000,-500.0,0.00018693,2]
[425920993,1782036633000,-151.0,0.00020755,2]
[425920994,1782036633000,-151.0,0.00020755,2]
[425921009,1782036633000,-500.0,0.00020755,2]
[425920998,1782036633000,-151.0,0.00020755,2]
[425920997,1782036633000,-2005.9555727,0.00020755,2]
[425921006,1782036633000,-151.0,0.00020755,2]
[425921000,1782036633000,-151.0,0.00020755,2]
[425921001,1782036633000,-151.0,0.00020755,2]
[425920990,1782036633000,-151.0,0.00020755,2]
[425921004,1782036633000,-151.0,0.00020755,2]
[425921008,1782036633000,-151.0,0.00020755,2]
[425920988,1782036633000,-151.0,0.00020755,2]
[425920981,1782036633000,-828.0,0.00020313,2]
[425920991,1782036633000,-151.0,0.00020755,2]
[425920985,1782036633000,-524.65016109,0.00020508,7]
[425920995,1782036633000,-151.0,0.00020755,2]
[425920996,1782036633000,-151.0,0.00020755,2]
[425920989,1782036633000,-151.0,0.00020755,2]
[425920987,1782036633000,-151.0,0.00020755,2]
[425920986,1782036633000,-151.0,0.00020755,2]
[425920984,1782036633000,-198.8052352,0.00020508,7]
[425920982,1782036633000,-211.9,0.00020381,2]
[425920983,1782036633000,-192.72350867,0.00020494,2]
[425920999,1782036633000,-151.0,0.00020755,2]
[425920992,1782036633000,-151.0,0.00020755,2]
[425921002,1782036633000,-151.0,0.00020755,2]
[425921030,1782036633000,-3922.44897561,0.00021773,2]
[425921003,1782036633000,-151.0,0.00020755,2]
[425921007,1782036633000,-500.0,0.00020755,2]
[425921026,1782036633000,-218.0,0.00021,2]
[425921027,1782036633000,-189.0,0.00021,2]
[425921032,1782036633000,-2157.14243826,0.00021851,2]
[425921033,1782036633000,-4397.17874354,0.00021918,2]
[425921029,1782036633000,-4590.38,0.00021613,2]
[425921031,1782036633000,-544.0,0.000218,2]
[425921023,1782036633000,-8627.43022167,0.0002087,2]
[425921025,1782036633000,-153.0,0.00021,2]
[425921024,1782036633000,-8321.90245164,0.00020893,2]
[425921017,1782036633000,-151.0,0.00020755,2]
[425921016,1782036633000,-151.0,0.00020755,2]
[425921028,1782036633000,-2080.17592889,0.00021303,2]
[425921013,1782036633000,-151.0,0.00020755,2]
[425921010,1782036633000,-151.0,0.00020755,2]
[425921022,1782036633000,-372.10589235,0.00020761,2]
[425921019,1782036633000,-151.0,0.00020755,2]
[425921012,1782036633000,-151.0,0.00020755,2]
[425921011,1782036633000,-500.0,0.00020755,2]
[425921020,1782036633000,-151.0,0.00020755,2]
[425921018,1782036633000,-151.0,0.00020755,2]
[425921021,1782036633000,-151.0,0.00020755,2]
[425921014,1782036633000,-151.0,0.00020755,2]
[425921015,1782036633000,-151.0,0.00020755,2]
[425921005,1782036633000,-151.0,0.00020755,2]
[425921191,1782036639000,-6935.22,0.00023368,2]
[425921183,1782036639000,-499.99,0.00023368,2]
[425921189,1782036639000,-299.99,0.00023368,7]
[425921174,1782036639000,-3922.44897561,0.00023316,2]
[425921178,1782036639000,-4999.99,0.00023368,2]
[425921180,1782036639000,-7674.22,0.00023368,2]
[425921170,1782036639000,-595.52,0.00023219,2]
[425921185,1782036639000,-6592.69,0.00023368,2]
[425921181,1782036639000,-999.99,0.00023368,2]
[425921194,1782036639000,-5200.49,0.00023368,2]
[425921197,1782036639000,-263.694733,0.00023613,14]
[425921192,1782036639000,-150.99,0.00023368,2]
[425921195,1782036639000,-925.54507293,0.00023508,7]
[425921196,1782036639000,-1384.56007588,0.00023508,7]
[425921198,1782036639000,-4186.35,0.00023671,2]
[425921204,1782036639000,-189.0,0.00024,2]
[425921199,1782036639000,-817.39018584,0.00023677,2]
[425921203,1782036639000,-218.0,0.00024,2]
[425921205,1782036639000,-173.0,0.00024,7]
[425921202,1782036639000,-168.0,0.00024,2]
[425921176,1782036639000,-3668.5664601,0.0002335,2]
[425921193,1782036639000,-1186.1,0.00023368,2]
[425921172,1782036639000,-2240.2,0.00023227,7]
[425921144,1782036639000,-2140.82859614,0.00022407,2]
[425921166,1782036639000,-189.0,0.00023,2]
[425921114,1782036639000,-602.82125646,0.00021918,2]
[425921116,1782036639000,-153.0,0.00022,2]
[425921120,1782036639000,-189.0,0.00022,2]
[425921118,1782036639000,-218.0,0.00022,2]
[425921124,1782036639000,-273.77884387,0.00022399,2]
[425921122,1782036639000,-211.9,0.00022353,2]
[425921127,1782036639000,-1971.0808949,0.00022399,2]
[425921132,1782036639000,-970.7050142,0.00022407,2]
[425921129,1782036639000,-188.61237604,0.00022407,2]
[425921136,1782036639000,-935.71689276,0.00012454,2]
[425921140,1782036639000,-1499064.28310724,0.00012454,2]
[425921147,1782036639000,-8627.43022167,0.00022477,2]
[425921201,1782036639000,-4975.05564958,0.000239,2]
[425921142,1782036639000,-981.51120591,0.00022407,2]
[425921149,1782036639000,-8321.90245164,0.00022494,2]
[425921157,1782036639000,-179.07,0.00022828,2]
[425921155,1782036639000,-6081.0,0.00022812,2]
[425921151,1782036639000,-429.70900624,0.00022513,2]
[425921153,1782036639000,-3647.0,0.00022812,2]
[425921158,1782036639000,-372.10589235,0.00022835,2]
[425921162,1782036639000,-153.0,0.00023,2]
[425921164,1782036639000,-218.0,0.00023,2]
[425921168,1782036639000,-365.26,0.00023,14]
[425921160,1782036639000,-215.449231,0.00022901,14]
[425921206,1782036639000,-8627.43022167,0.00024083,2]
[425921187,1782036639000,-6033.67,0.00023368,2]
[425921208,1782036639000,-966.36,0.00024174,2]
[425921234,1782036639000,-8627.43022167,0.0002569,2]
[425921235,1782036639000,-8321.90245164,0.00025696,2]
[425921236,1782036639000,-4975.05564958,0.000257,2]
[425921238,1782036639000,-460.83,0.00025786,2]
[425921239,1782036639000,-150.0,0.0002581,2]
[425921237,1782036639000,-966.36,0.00025786,2]
[425921240,1782036639000,-3647.0,0.00025812,2]
[425921242,1782036639000,-4975.05564958,0.000259,2]
[425921245,1782036639000,-4975.05564958,0.000262,2]
[425921246,1782036639000,-211.9,0.00026296,2]
[425921232,1782036639000,-4975.05564958,0.000254,2]
[425921247,1782036639000,-170.25161613,0.00026397,2]
[425921249,1782036639000,-334.87943,0.00026423,2]
[425921248,1782036639000,-3922.44897561,0.00026403,2]
[425921244,1782036639000,-168.11,0.00026017,7]
[425921243,1782036639000,-459.0,0.00025902,10]
[425921251,1782036639000,-220.71280324,0.00026495,2]
[425921254,1782036639000,-939.03,0.00026928,2]
[425921256,1782036639000,-510.0,0.00027137,2]
[425921255,1782036639000,-372.10589235,0.00026984,2]
[425921253,1782036639000,-164.62217468,0.00026919,2]
[425921200,1782036639000,-927.77084688,0.000239,2]
[425921250,1782036639000,-431.954703,0.00026423,2]
[425921241,1782036639000,-6081.0,0.00025812,2]
[425921252,1782036639000,-331.06920486,0.00026628,14]
[425921233,1782036639000,-363.04963481,0.00025521,2]
[425921211,1782036639000,-4975.05564958,0.000242,2]
[425921230,1782036639000,-4975.05564958,0.000252,2]
[425921209,1782036639000,-460.83,0.00024174,2]
[425921207,1782036639000,-8321.90245164,0.00024095,2]
[425921214,1782036639000,-4975.05564958,0.000244,2]
[425921212,1782036639000,-211.9,0.00024324,2]
[425921217,1782036639000,-1000.0,0.00024658,2]
[425921210,1782036639000,-927.77084688,0.000242,2]
[425921215,1782036639000,-1609.73100628,0.00024461,7]
[425921216,1782036639000,-2011.96462247,0.00024461,7]
[425921218,1782036639000,-150.72,0.00024658,2]
[425921213,1782036639000,-927.77084688,0.000244,2]
[425921221,1782036639000,-4975.05564958,0.000247,2]
[425921224,1782036639000,-4975.05564958,0.000249,2]
[425921222,1782036639000,-3922.44897561,0.0002486,2]
[425921229,1782036639000,-1245.0,0.00025094,5]
[425921220,1782036639000,-927.77084688,0.000247,2]
[425921231,1782036639000,-170.25161613,0.00025397,2]
[425921225,1782036639000,-372.10589235,0.0002491,2]
[425921219,1782036639000,-152.25,0.00024658,2]
[425921228,1782036639000,-193.0,0.00025,2]
[425921227,1782036639000,-227.0,0.00025,2]
[425921226,1782036639000,-45796.52157726,0.00025,2]
[425921223,1782036639000,-927.77084688,0.000249,2]
[425921299,1782036640000,-1029.68932489,0.00027396,2]
[425921292,1782036640000,-735.98,0.00027396,2]
[425921300,1782036640000,-1029.68932489,0.00027396,2]
[425921296,1782036640000,-1029.6893249,0.00027396,2]
[425921297,1782036640000,-1029.6893249,0.00027396,2]
[425921298,1782036640000,-1029.68932489,0.00027396,2]
[425921293,1782036640000,-1029.6893249,0.00027396,2]
[425921294,1782036640000,-1029.6893249,0.00027396,2]
[425921295,1782036640000,-1029.6893249,0.00027396,2]
[425921290,1782036640000,-735.98,0.00027396,2]
[425921302,1782036640000,-1029.68932489,0.00027396,2]
[425921289,1782036640000,-463.0653426,0.00027396,2]
[425921301,1782036640000,-1029.68932489,0.00027396,2]
[425921323,1782036640000,-500.0,0.00027396,2]
[425921303,1782036640000,-1029.68932489,0.00027396,2]
[425921307,1782036640000,-500.0,0.00027396,2]
[425921305,1782036640000,-1029.68932489,0.00027396,2]
[425921306,1782036640000,-1029.68932489,0.00027396,2]
[425921308,1782036640000,-500.0,0.00027396,2]
[425921304,1782036640000,-1029.68932489,0.00027396,2]
[425921309,1782036640000,-500.0,0.00027396,2]
[425921311,1782036640000,-500.0,0.00027396,2]
[425921310,1782036640000,-500.0,0.00027396,2]
[425921315,1782036640000,-500.0,0.00027396,2]
[425921321,1782036640000,-500.0,0.00027396,2]
[425921291,1782036640000,-735.98,0.00027396,2]
[425921312,1782036640000,-500.0,0.00027396,2]
[425921322,1782036640000,-500.0,0.00027396,2]
[425921261,1782036640000,-500.0,0.00027395,2]
[425921282,1782036640000,-1428.58,0.00027396,2]
[425921264,1782036640000,-500.0,0.00027396,2]
[425921257,1782036640000,-8321.90245164,0.00027297,2]
[425921259,1782036640000,-200.0,0.00027386,2]
[425921263,1782036640000,-500.0,0.00027396,2]
[425921260,1782036640000,-328.69924039,0.00027387,2]
[425921258,1782036640000,-8627.43022167,0.00027297,2]
[425921262,1782036640000,-500.0,0.00027396,2]
[425921267,1782036640000,-500.0,0.00027396,2]
[425921270,1782036640000,-500.0,0.00027396,2]
[425921269,1782036640000,-500.0,0.00027396,2]
[425921265,1782036640000,-500.0,0.00027396,2]
[425921271,1782036640000,-500.0,0.00027396,2]
[425921276,1782036640000,-500.0,0.00027396,2]
[425921268,1782036640000,-500.0,0.00027396,2]
[425921272,1782036640000,-500.0,0.00027396,2]
[425921275,1782036640000,-500.0,0.00027396,2]
[425921273,1782036640000,-500.0,0.00027396,2]
[425921274,1782036640000,-500.0,0.00027396,2]
[425921278,1782036640000,-501.81106036,0.00027396,2]
[425921277,1782036640000,-485.81240408,0.00027396,2]
[425921279,1782036640000,-500.0,0.00027396,2]
[425921280,1782036640000,-506.64029127,0.00027396,2]
[425921281,1782036640000,-1428.58,0.00027396,2]
[425921286,1782036640000,-500.0,0.00027396,2]
[425921287,1782036640000,-500.0,0.00027396,2]
[425921283,1782036640000,-1428.58,0.00027396,2]
[425921285,1782036640000,-500.0,0.00027396,2]
[425921284,1782036640000,-1428.58,0.00027396,2]
[425921317,1782036640000,-500.0,0.00027396,2]
[425921288,1782036640000,-500.0,0.00027396,2]
[425921320,1782036640000,-500.0,0.00027396,2]
[425921344,1782036640000,-500.0,0.00027397,2]
[425921363,1782036640000,-605.84028048,0.00027397,2]
[425921362,1782036640000,-500.0,0.00027397,2]
[425921353,1782036640000,-500.0,0.00027397,2]
[425921352,1782036640000,-500.0,0.00027397,2]
[425921356,1782036640000,-662.54,0.00027397,2]
[425921355,1782036640000,-500.0,0.00027397,2]
[425921354,1782036640000,-500.0,0.00027397,2]
[425921357,1782036640000,-500.0,0.00027397,2]
[425921359,1782036640000,-500.0,0.00027397,2]
[425921358,1782036640000,-500.0,0.00027397,2]
[425921361,1782036640000,-500.0,0.00027397,2]
[425921360,1782036640000,-500.0,0.00027397,2]
[425921364,1782036640000,-500.0,0.00027397,2]
[425921367,1782036640000,-1087.51,0.00027397,2]
[425921368,1782036640000,-500.0,0.00027397,2]
[425921366,1782036640000,-500.0,0.00027397,2]
[425921371,1782036640000,-500.0,0.00027397,2]
[425921365,1782036640000,-500.0,0.00027397,2]
[425921372,1782036640000,-500.0,0.00027397,2]
[425921369,1782036640000,-500.0,0.00027397,2]
[425921370,1782036640000,-500.0,0.00027397,2]
[425921375,1782036640000,-500.0,0.00027397,2]
[425921374,1782036640000,-500.0,0.00027397,2]
[425921373,1782036640000,-543.45,0.00027397,2]
[425921377,1782036640000,-500.0,0.00027397,2]
[425921378,1782036640000,-286.70776312,0.00027397,2]
[425921340,1782036640000,-500.0,0.00027397,2]
[425921347,1782036640000,-500.0,0.00027397,2]
[425921376,1782036640000,-182.44789335,0.00027397,2]
[425921350,1782036640000,-500.0,0.00027397,2]
[425921348,1782036640000,-500.0,0.00027397,2]
[425921313,1782036640000,-500.0,0.00027396,2]
[425921314,1782036640000,-500.0,0.00027396,2]
[425921318,1782036640000,-500.0,0.00027396,2]
[425921316,1782036640000,-500.0,0.00027396,2]
[425921324,1782036640000,-500.0,0.00027396,2]
[425921319,1782036640000,-500.0,0.00027396,2]
[425921327,1782036640000,-500.0,0.00027397,2]
[425921337,1782036640000,-500.0,0.00027397,2]
[425921326,1782036640000,-500.0,0.00027396,2]
[425921338,1782036640000,-500.0,0.00027397,2]
[425921328,1782036640000,-508.0,0.00027397,2]
[425921330,1782036640000,-506.6910939,0.00027397,2]
[425921329,1782036640000,-500.0,0.00027397,2]
[425921325,1782036640000,-500.0,0.00027396,2]
[425921332,1782036640000,-500.0,0.00027397,2]
[425921331,1782036640000,-500.0,0.00027397,2]
[425921351,1782036640000,-500.0,0.00027397,2]
[425921349,1782036640000,-500.0,0.00027397,2]
[425921343,1782036640000,-500.0,0.00027397,2]
[425921346,1782036640000,-500.0,0.00027397,2]
[425921341,1782036640000,-500.0,0.00027397,2]
[425921345,1782036640000,-500.0,0.00027397,2]
[425921339,1782036640000,-348.39451199,0.00027397,2]
[425921335,1782036640000,-500.0,0.00027397,2]
[425921333,1782036640000,-500.0,0.00027397,2]
[425921336,1782036640000,-605.58365149,0.00027397,2]
[425921334,1782036640000,-500.0,0.00027397,2]
[425921342,1782036640000,-500.0,0.00027397,2]
[425921418,1782036641000,-500.0,0.00027397,2]